bitfinex-derivatives/quotes_BTCF0:USTF0_20251229
["timestamp","ask_amount","ask_price","bid_price","bid_amount"]
[1766985431175,0.14992,90239.0,90225.0,0.0410939]
[1766985433973,0.14992,90238.0,90228.0,0.0110935]
[1766985434178,0.04401243,90237.0,90230.0,0.0110931]
[1766985434380,0.09428,90239.0,90230.0,0.0410931]
[1766985434381,0.05564,90238.0,90230.0,0.0410931]
[1766985435674,0.00016621,90240.0,90230.0,0.0410931]
[1766985435879,0.05564,90237.0,90230.0,0.0410931]
[1766985438178,0.09428,90244.0,90233.0,0.0110928]
[1766985438381,0.09428,90244.0,90233.0,0.0410928]
[1766985438382,0.05564,90243.0,90233.0,0.0410928]
[1766985439371,0.05564,90243.0,90233.0,0.03]
[1766985439781,0.05564,90243.0,90238.0,0.0110923]
[1766985439981,0.05564,90243.0,90238.0,0.0410923]
[1766985440478,0.05564,90244.0,90238.0,0.03]
[1766985442581,0.00016621,90247.0,90238.0,0.03]
[1766985442780,0.08054222,90246.0,90238.0,0.03]
[1766985442981,0.02490222,90245.0,90238.0,0.03]
[1766985443177,0.02490509,90244.0,90238.0,0.03]
[1766985443379,0.05564,90246.0,90238.0,0.03]
[1766985443684,0.08054693,90245.0,90238.0,0.03]
[1766985443990,0.02490693,90244.0,90238.0,0.03]
[1766985444983,0.05564,90245.0,90238.0,0.03]
[1766985446285,0.0110915,90244.0,90238.0,0.03]
[1766985447083,0.0110919,90242.0,90229.0,0.00016621]
[1766985447288,0.0110919,90242.0,90229.0,0.03016621]
[1766985448895,0.0110921,90240.0,90229.0,0.03016621]
[1766985451494,0.2024,90276.0,90230.0,0.2191571]
[1766985451696,0.02496248,90275.0,90238.0,0.0110923]
[1766985451894,0.0110892,90264.0,90239.0,0.14992]
[1766985452091,0.02495887,90263.0,90240.0,0.0110919]
[1766985452295,0.0110892,90264.0,90240.0,0.15191425]
[1766985452712,0.00016621,90261.0,90243.0,0.00016621]
[1766985452901,0.0110896,90260.0,90243.0,0.03016621]
[1766985453102,0.0110904,90254.0,90243.0,0.03016621]
[1766985454717,0.00016621,90261.0,90243.0,0.03016621]
[1766985457312,0.00016621,90261.0,90243.0,0.08580621]
[1766985458114,0.0110901,90257.0,90243.0,0.08580621]
[1766985458314,0.01109,90257.0,90243.0,0.03016621]
[1766985458517,0.02567736,90256.0,90243.0,0.03016621]
[1766985458717,0.01109,90257.0,90243.0,0.03016621]
[1766985459021,0.0110912,90248.0,90220.0,0.0110944]
[1766985459216,0.0110912,90248.0,90221.0,0.14992]
[1766985459417,0.0110915,90245.0,90221.0,0.0410943]
[1766985459609,0.0110915,90245.0,90222.0,0.14992]
[1766985459815,0.0110915,90245.0,90222.0,0.17992]
[1766985460014,0.00016621,90243.0,90224.0,0.00016621]
[1766985460212,0.00016621,90243.0,90224.0,0.04126021]
[1766985460415,0.011091,90249.0,90227.0,0.0110936]
[1766985460617,0.02568297,90248.0,90227.0,0.0410936]
[1766985460819,0.011091,90249.0,90227.0,0.0410936]
[1766985461020,2.96e-06,90248.0,90230.0,0.21921217]
[1766985461220,0.011091,90249.0,90231.0,0.05564]
[1766985461416,0.011091,90249.0,90231.0,0.08564]
[1766985461724,0.01125721,90249.0,90231.0,0.08564]
[1766985461927,0.01125721,90249.0,90231.0,0.12622]
[1766985462118,0.21921217,90241.0,90231.0,0.12622]
[1766985463523,0.0110917,90244.0,90231.0,0.12622]
[1766985464019,0.0110917,90244.0,90231.0,0.07058]
[1766985464917,0.21921217,90241.0,90231.0,0.07058]
[1766985465124,0.0110923,90238.0,90231.0,0.07058]
[1766985468623,0.0110919,90242.0,90231.0,0.07058]
[1766985468826,0.011092,90240.0,90231.0,0.07058]
[1766985470120,0.21921217,90241.0,90231.0,0.07058]
[1766985470326,0.05564,90244.0,90231.0,0.07058]
[1766985471222,0.0110919,90242.0,90231.0,0.07058]
[1766985472430,0.0110921,90240.0,90231.0,0.07058]
[1766985472820,0.0110924,90238.0,90231.0,0.07058]
[1766985473124,0.011093,90232.0,90224.0,1e-08]
[1766985473319,0.011093,90232.0,90224.0,0.03000001]
[1766985474415,0.0110927,90235.0,90224.0,0.03000001]
[1766985474618,0.0110922,90239.0,90224.0,0.03000001]
[1766985478430,0.21921217,90240.0,90224.0,0.03000001]
[1766985479230,0.0110922,90239.0,90224.0,0.03000001]
[1766985481528,0.0110918,90243.0,90224.0,0.03000001]
[1766985482332,0.02513261,90242.0,90224.0,0.03000001]
[1766985482630,0.0110918,90243.0,90224.0,0.03000001]
[1766985482834,0.011092,90241.0,90224.0,0.03000001]
[1766985483028,0.21921217,90240.0,90224.0,0.03000001]
[1766985484527,0.0110922,90239.0,90224.0,0.03000001]
[1766985487534,0.0110925,90237.0,90224.0,0.03000001]
[1766985489732,0.21921217,90234.0,90224.0,1e-08]
[1766985489932,0.11946194,90233.0,90224.0,0.01]
[1766985490134,0.0110932,90231.0,90196.0,0.09428]
[1766985490328,0.0110962,90207.0,90196.0,0.10428]
[1766985490528,0.0110962,90207.0,90196.0,0.15992]
[1766985491529,0.21921217,90210.0,90196.0,0.15992]
[1766985491741,0.23030787,90210.0,90196.0,0.15992]
[1766985491938,0.05580621,90211.0,90196.0,0.15992]
[1766985492239,0.105375,90216.0,90196.0,0.15992]
[1766985492240,0.05564,90213.0,90196.0,0.15992]
[1766985492430,0.0110945,90220.0,90200.0,0.21921217]
[1766985492628,0.04380217,90219.0,90201.0,0.0110967]
[1766985492830,0.04380217,90219.0,90202.0,0.05564]
[1766985493038,0.05489677,90219.0,90202.0,0.08564]
[1766985493544,0.04380217,90219.0,90202.0,0.03]
[1766985493738,0.0110956,90211.0,90202.0,0.01]
[1766985494036,0.0110956,90211.0,90172.0,4e-07]
[1766985494247,0.21921217,90182.0,90155.0,0.0111025]
[1766985494538,0.15,90181.0,90161.0,0.0111017]
[1766985494736,0.05572,90180.0,90161.0,0.03]
[1766985494946,0.05572,90180.0,90161.0,0.02995]
[1766985495135,0.01121271,90179.0,90161.0,0.03011631]
[1766985495334,0.00011321,90179.0,90161.0,0.03011631]
[1766985496032,0.01121281,90179.0,90161.0,0.03011631]
[1766985496432,0.0111,90176.0,90161.0,0.03011631]
[1766985496839,0.00011321,90179.0,90161.0,0.03011631]
[1766985497647,0.0111001,90175.0,90161.0,0.03011631]
[1766985497843,0.0111001,90175.0,90161.0,0.03006631]
[1766985498246,0.0111005,90171.0,90144.0,0.0111038]
[1766985498438,0.0111005,90171.0,90146.0,0.0111036]
[1766985498638,0.0111005,90171.0,90146.0,0.0411036]
[1766985499241,0.0111005,90171.0,90149.0,0.00011102]
[1766985499442,0.0111005,90171.0,90149.0,0.04121412]
[1766985499738,0.05572,90170.0,90149.0,0.04121412]
[1766985500338,0.0111008,90169.0,90149.0,0.03011102]
[1766985501043,0.05572,90170.0,90149.0,0.03011102]
[1766985501638,0.05572,90170.0,90149.0,0.04121532]
[1766985501840,0.0111021,90168.0,90149.0,0.03011102]
[1766985504146,0.05572,90170.0,90151.0,0.0111041]
[1766985504349,0.05572,90170.0,90151.0,0.0411041]
[1766985504532,0.0668219,90170.0,90151.0,0.03]
[1766985504733,0.05572,90170.0,90151.0,0.03]
[1766985505346,0.05572,90170.0,90154.0,0.0111037]
[1766985505548,0.05572,90170.0,90154.0,0.0411037]
[1766985505847,0.05572,90170.0,90157.0,0.0111033]
[1766985506043,0.05572,90170.0,90157.0,0.0411033]
[1766985506244,0.0111008,90178.0,90157.0,0.0411033]
[1766985506439,0.15008,90177.0,90160.0,0.0111029]
[1766985506639,0.15008,90177.0,90160.0,0.0411029]
[1766985510151,0.05572,90176.0,90162.0,0.0111026]
[1766985510342,0.05572,90176.0,90162.0,0.0411026]
[1766985510538,0.00011321,90179.0,90165.0,0.0111024]
[1766985510850,0.00011321,90179.0,90165.0,0.0411024]
[1766985511447,0.00016631,90180.0,90165.0,0.0411024]
[1766985511638,0.05572,90184.0,90169.0,0.0111018]
[1766985511839,0.05572,90184.0,90169.0,0.0411018]
[1766985512543,4.915e-05,90183.0,90169.0,0.0411018]
[1766985514046,4.915e-05,90183.0,90169.0,0.03]
[1766985516154,0.01114935,90183.0,90169.0,0.03]
[1766985517151,4.915e-05,90183.0,90169.0,0.03]
[1766985518354,0.02530258,90182.0,90169.0,0.03]
[1766985518554,0.02530258,90181.0,90169.0,0.03]
[1766985518750,0.02530264,90180.0,90169.0,0.03]
[1766985518957,0.02530264,90179.0,90169.0,0.01]
[1766985519159,0.02530264,90178.0,90169.0,0.01]
[1766985519350,0.02530264,90177.0,90169.0,0.01]
[1766985519655,0.03640374,90176.0,90169.0,0.01]
[1766985519957,0.02530264,90175.0,90169.0,0.01]
[1766985521454,0.02530264,90175.0,90122.0,0.07939515]
[1766985521657,0.02530264,90175.0,90149.0,0.0111042]
[1766985521658,0.0111024,90165.0,90149.0,0.0111042]
[1766985521956,4.915e-05,90164.0,90149.0,0.0411042]
[1766985522653,4.915e-05,90164.0,90149.0,0.03]
[1766985523457,4.915e-05,90164.0,90153.0,0.0111038]
[1766985523756,4.915e-05,90164.0,90153.0,0.03]
[1766985524355,0.03652394,90163.0,90153.0,0.03]
[1766985524552,0.02542134,90162.0,90153.0,0.03]
[1766985524862,0.02542458,90161.0,90146.0,0.00232973]
[1766985525153,0.02542458,90160.0,90132.0,0.09436]
[1766985525359,0.0111046,90148.0,90132.0,0.12436]
[1766985525559,0.02541587,90147.0,90133.0,0.0111063]
[1766985525747,4.915e-05,90146.0,90133.0,0.0411063]
[1766985526152,4.915e-05,90146.0,90135.0,0.00232973]
[1766985526354,4.915e-05,90146.0,90135.0,0.03232973]
[1766985527251,4.915e-05,90146.0,90135.0,0.04343573]
[1766985527458,0.0111026,90163.0,90143.0,0.0111051]
[1766985527757,0.17548427,90162.0,90143.0,0.0411051]
[1766985527962,0.02540427,90161.0,90143.0,0.0411051]
[1766985528160,0.0111031,90160.0,90143.0,0.03]
[1766985528360,0.02540427,90159.0,90143.0,0.03]
[1766985529955,0.0111033,90158.0,90143.0,0.03]
[1766985530259,0.02540427,90157.0,90143.0,0.03]
[1766985530460,0.02540427,90156.0,90143.0,0.03]
[1766985530661,0.02540427,90155.0,90143.0,0.03]
[1766985530970,0.02540427,90154.0,90143.0,0.03]
[1766985531163,0.02540427,90153.0,90143.0,0.03]
[1766985531459,0.02540427,90152.0,90143.0,0.03]
[1766985531663,0.0111029,90161.0,90143.0,0.03]
[1766985531864,0.02531179,90160.0,90143.0,0.03]
[1766985532053,0.02531179,90159.0,90143.0,0.03]
[1766985532254,0.02531179,90158.0,90143.0,0.03]
[1766985532456,0.02531179,90157.0,90143.0,0.03]
[1766985532656,0.02531179,90156.0,90143.0,0.03]
[1766985532852,0.02531179,90155.0,90143.0,0.03]
[1766985533052,0.02531179,90154.0,90143.0,0.03]
[1766985533256,0.0111032,90158.0,90143.0,0.03]
[1766985533457,0.02530692,90157.0,90143.0,0.03]
[1766985533658,0.02530692,90156.0,90143.0,0.03]
[1766985533860,0.03641052,90155.0,90143.0,0.03]
[1766985534058,0.0111039,90153.0,90143.0,0.03]
[1766985534259,0.0111043,90150.0,90132.0,0.09436]
[1766985534460,0.0111043,90150.0,90141.0,0.00232973]
[1766985534660,0.0111043,90150.0,90141.0,0.03232973]
[1766985535066,0.0111039,90153.0,90141.0,0.03232973]
[1766985535371,0.0111039,90153.0,90107.0,0.01995778]
[1766985535372,0.17537923,90152.0,90121.0,0.15008]
[1766985535574,0.0001664,90147.0,90123.0,0.03013104]
[1766985535777,0.0001664,90147.0,90129.0,0.0111067]
[1766985535971,0.0001664,90147.0,90129.0,0.0411067]
[1766985536167,0.011271,90147.0,90129.0,0.0411067]
[1766985536367,0.0001664,90147.0,90129.0,0.0411067]
[1766985536570,0.0001664,90147.0,90132.0,0.0111064]
[1766985536873,0.2195506,90170.0,90132.0,0.0111064]
[1766985536874,0.05572,90152.0,90134.0,0.0111062]
[1766985537067,0.03639892,90151.0,90134.0,0.03]
[1766985537263,0.0111042,90151.0,90134.0,0.03]
[1766985537971,0.0111044,90149.0,90134.0,0.03]
[1766985538374,0.0001664,90152.0,90134.0,0.03]
[1766985538984,0.0111045,90149.0,90134.0,0.03]
[1766985539282,0.0001664,90152.0,90134.0,0.03]
[1766985539581,0.0111045,90148.0,90134.0,0.03]
[1766985540675,0.0111041,90151.0,90134.0,0.0411062]
[1766985540875,0.1339439,90153.0,90134.0,0.03]
[1766985541178,0.0111029,90161.0,90143.0,0.011105]
[1766985541372,0.0110998,90186.0,90143.0,0.03]
[1766985541373,0.0252849,90160.0,90143.0,0.03]
[1766985541573,0.09436,90167.0,90143.0,0.12436]
[1766985541872,0.0001664,90164.0,90143.0,0.12436]
[1766985542070,0.0001664,90164.0,90147.0,0.0111045]
[1766985542273,0.0001664,90164.0,90147.0,0.0411045]
[1766985543379,0.0111033,90158.0,90147.0,0.03]
[1766985543584,0.0111043,90150.0,90134.0,0.09436]
[1766985543777,0.0111051,90143.0,90134.0,0.01]
[1766985544585,0.09436,90157.0,90134.0,0.01]
[1766985544586,0.0111047,90147.0,90134.0,0.01]
[1766985545382,0.0111042,90150.0,90134.0,0.01]
[1766985545583,0.09436,90158.0,90134.0,0.01]
[1766985545776,0.09436,90158.0,90139.0,0.0111055]
[1766985546084,0.09436,90158.0,90139.0,0.0411055]
[1766985547890,0.0111027,90163.0,90139.0,0.03]
[1766985548189,0.0111027,90163.0,90141.0,0.0111053]
[1766985548190,0.1363027,90163.0,90141.0,0.0111053]
[1766985548380,0.0001664,90164.0,90146.0,0.0111046]
[1766985548580,0.0001664,90164.0,90146.0,0.0411046]
[1766985551292,0.0112689,90164.0,90146.0,0.0411046]
[1766985551990,0.0001664,90164.0,90146.0,0.03]
[1766985552183,0.0111015,90172.0,90147.0,0.05572]
[1766985552383,0.0111015,90172.0,90147.0,0.08572]
[1766985553091,0.0001664,90169.0,90147.0,0.08572]
[1766985553284,0.0001664,90169.0,90155.0,0.0111035]
[1766985553484,0.0248612,90168.0,90155.0,0.0411035]
[1766985553791,0.0001664,90169.0,90155.0,0.0411035]
[1766985553986,0.02486129,90168.0,90155.0,0.0411035]
[1766985554187,0.0001664,90169.0,90155.0,0.0411035]
[1766985554388,0.02486261,90168.0,90155.0,0.0411035]
[1766985554591,0.0001664,90169.0,90155.0,0.0411035]
[1766985554789,0.02486089,90168.0,90155.0,0.0411035]
[1766985554983,0.0001664,90169.0,90155.0,0.0411035]
[1766985555185,0.02480295,90168.0,90155.0,0.0411035]
[1766985555386,0.0001664,90169.0,90155.0,0.0411035]
[1766985555586,0.02479875,90168.0,90155.0,0.0411035]
[1766985555786,0.0001664,90169.0,90155.0,0.0411035]
[1766985555986,0.0247983,90168.0,90155.0,0.0411035]
[1766985556188,0.0001664,90169.0,90155.0,0.0411035]
[1766985556896,0.0112684,90169.0,90155.0,0.03]
[1766985558696,0.0111024,90165.0,90155.0,0.03]
[1766985559099,0.0111033,90158.0,90153.0,0.0001664]
[1766985559396,0.0111033,90158.0,90153.0,0.0101664]
[1766985561397,0.011104,90153.0,90137.0,0.0111057]
[1766985561598,0.011104,90153.0,90138.0,0.15008]
[1766985561804,0.0111035,90156.0,90139.0,0.0111056]
[1766985561997,0.0111035,90156.0,90139.0,0.0411056]
[1766985563104,0.0111038,90154.0,90139.0,0.03]
[1766985563299,0.0001664,90157.0,90139.0,0.03]
[1766985563300,0.0111041,90151.0,90139.0,0.03]
[1766985563501,0.0111057,90138.0,90136.0,0.09436]
[1766985563696,0.0111057,90138.0,90136.0,0.03]
[1766985563897,0.0111053,90142.0,90130.0,0.09436]
[1766985564102,0.09436,90153.0,90131.0,0.0111065]
[1766985564103,0.0111045,90149.0,90131.0,0.0111065]
[1766985564406,0.011104,90152.0,90131.0,0.0411065]
[1766985564600,0.011104,90152.0,90132.0,0.0001664]
[1766985564802,0.0111043,90150.0,90132.0,0.0301664]
[1766985565603,0.0111043,90150.0,90133.0,0.0111063]
[1766985565797,0.0112699,90157.0,90133.0,0.03]
[1766985566006,0.0001664,90157.0,90143.0,0.011105]
[1766985566206,0.0001664,90157.0,90143.0,0.041105]
[1766985567005,0.0001664,90157.0,90143.0,0.03]
[1766985571914,0.0111037,90155.0,90143.0,0.03]
[1766985572810,0.0111039,90153.0,90143.0,0.03]
[1766985573012,0.0001664,90157.0,90143.0,0.03]
[1766985573213,0.011104,90153.0,90143.0,0.03]
[1766985574614,0.0111042,90151.0,90143.0,0.03]
[1766985575015,0.0111044,90149.0,90143.0,0.03]
[1766985575415,0.011104,90152.0,90143.0,0.03]
[1766985578013,0.0111043,90150.0,90143.0,0.03]
[1766985578620,0.0001664,90157.0,90143.0,0.03]
[1766985578807,0.0111046,90148.0,90143.0,0.01]
[1766985579010,0.0001664,90157.0,90141.0,0.03292]
[1766985579211,0.0247324,90156.0,90141.0,0.03]
[1766985579405,0.0247324,90155.0,90141.0,0.03]
[1766985579607,0.0247324,90154.0,90139.0,0.05568]
[1766985579811,0.0001664,90157.0,90139.0,0.08568]
[1766985580019,0.02472843,90156.0,90139.0,0.03]
[1766985580217,0.02472843,90155.0,90139.0,0.03]
[1766985580418,0.02472843,90154.0,90139.0,0.03]
[1766985580614,0.0001664,90157.0,90139.0,0.03]
[1766985580923,0.0111043,90150.0,90139.0,0.03]
[1766985582717,0.02469557,90149.0,90139.0,0.03]
[1766985582922,0.0111043,90150.0,90139.0,0.03]
[1766985583221,0.0111045,90148.0,90139.0,0.03]
[1766985584023,0.0111042,90151.0,90139.0,0.03]
[1766985584212,0.02469665,90150.0,90139.0,0.03]
[1766985584416,0.03580105,90149.0,90139.0,0.03]
[1766985584620,0.0111044,90149.0,90139.0,0.03]
[1766985584921,0.0111058,90138.0,90132.0,0.0001664]
[1766985585224,0.0111054,90141.0,90129.0,0.05568]
[1766985585415,0.0944,90150.0,90129.0,0.05568]
[1766985585416,0.0111046,90147.0,90130.0,0.0111067]
[1766985585617,0.09085286,90185.0,90130.0,0.41552576]
[1766985585821,0.0111025,90165.0,90146.0,0.0111046]
[1766985586024,0.0111026,90163.0,90146.0,0.03]
[1766985586226,0.02472189,90162.0,90146.0,0.03]
[1766985586528,0.02472189,90161.0,90146.0,0.03]
[1766985586828,0.02472189,90160.0,90146.0,0.03]
[1766985587127,0.02472189,90159.0,90146.0,0.03]
[1766985587427,0.02472189,90158.0,90146.0,0.03]
[1766985587638,0.02472189,90157.0,90146.0,0.03]
[1766985587839,0.02472189,90156.0,90146.0,0.03]
[1766985588035,0.02472189,90155.0,90146.0,0.03]
[1766985588234,0.0111036,90155.0,90146.0,0.03]
[1766985588429,0.02472028,90154.0,90146.0,0.03]
[1766985588640,0.0111036,90155.0,90146.0,0.03]
[1766985588830,0.02472062,90154.0,90146.0,0.03]
[1766985589037,0.0111036,90155.0,90146.0,0.03]
[1766985589236,0.02472045,90154.0,90146.0,0.03]
[1766985589431,0.02472045,90153.0,90146.0,0.03]
[1766985589632,0.0111037,90155.0,90146.0,0.03]
[1766985589837,0.0111039,90153.0,90146.0,0.01]
[1766985590140,0.02472382,90152.0,90146.0,0.01]
[1766985591040,0.0111034,90157.0,90146.0,0.01]
[1766985591239,0.02472806,90156.0,90146.0,0.01]
[1766985591438,0.03583166,90155.0,90146.0,0.01]
[1766985591641,0.02472806,90154.0,90146.0,0.01]
[1766985595432,0.0111039,90153.0,90146.0,0.01]
[1766985595632,0.02472806,90152.0,90146.0,0.01]
[1766985597246,0.02472806,90152.0,90144.0,0.0001664]
[1766985597550,0.09436,90159.0,90144.0,0.03]
[1766985597753,0.02474201,90158.0,90144.0,0.03]
[1766985597949,0.21964266,90154.0,90144.0,0.01]
[1766985598149,0.02474201,90153.0,90144.0,0.03]
[1766985598346,0.02474201,90152.0,90143.0,0.05568]
[1766985598651,0.0111042,90151.0,90143.0,0.03]
[1766985600443,0.0111044,90149.0,90143.0,0.03]
[1766985601450,0.09436,90159.0,90143.0,0.03]
[1766985601653,0.0111042,90151.0,90143.0,0.03]
[1766985601846,0.0111036,90156.0,90143.0,0.03]
[1766985602047,0.02596765,90155.0,90143.0,0.03]
[1766985602250,0.02596765,90154.0,90143.0,0.03]
[1766985603154,0.02596765,90153.0,90143.0,0.03]
[1766985603354,0.0111036,90156.0,90143.0,0.03]
[1766985603553,0.09025194,90197.0,90146.0,0.43928532]
[1766985603750,0.0110995,90188.0,90161.0,0.21964266]
[1766985604050,0.0110955,90221.0,90178.0,0.21964266]
[1766985604248,0.0110972,90208.0,90183.0,0.0111001]
[1766985604444,0.0186972,90208.0,90186.0,0.0110998]
[1766985604754,0.0110978,90202.0,90187.0,0.05572]
[1766985604949,0.0110978,90202.0,90187.0,0.08572]
[1766985606952,0.0001664,90204.0,90187.0,0.08572]
[1766985607162,1.5,90218.0,90187.0,0.08572]
[1766985607346,1.55572,90218.0,90198.0,0.0110982]
[1766985607645,1.55572,90218.0,90199.0,0.05572]
[1766985607948,0.0110964,90214.0,90199.0,0.08572]
[1766985608152,0.0110972,90208.0,90199.0,0.01]
[1766985608453,0.0110972,90208.0,90199.0,0.06572]
[1766985609054,0.0110972,90208.0,90199.0,0.01]
[1766985610849,0.0110967,90212.0,90199.0,0.01]
[1766985612757,0.00016631,90216.0,90199.0,0.01]
[1766985613161,0.00016631,90216.0,90199.0,0.03]
[1766985613659,0.011097,90209.0,90199.0,0.03]
[1766985614453,0.0110975,90205.0,90195.0,0.05572]
[1766985614656,0.0110975,90205.0,90195.0,0.01]
[1766985617567,0.00016631,90216.0,90195.0,0.06572]
[1766985617568,0.0110978,90202.0,90195.0,0.06572]
[1766985618065,0.0110978,90202.0,90185.0,0.0001664]
[1766985618267,0.0110978,90202.0,90186.0,0.15]
[1766985618464,0.0110978,90202.0,90186.0,0.18]
[1766985619468,0.0110982,90199.0,90186.0,0.18]
[1766985619664,0.0110982,90199.0,90187.0,0.05568]
[1766985619966,0.0110982,90199.0,90187.0,0.08568]
[1766985621069,0.09432,90209.0,90187.0,0.08568]
[1766985622161,0.0110984,90198.0,90187.0,0.08568]
[1766985623864,0.0110989,90194.0,90187.0,0.08568]
[1766985624067,0.09432,90209.0,90188.0,0.04568]
[1766985624269,0.0110993,90191.0,90185.0,0.0001664]
[1766985624571,0.0110993,90191.0,90185.0,0.0301664]
[1766985625263,0.00016631,90197.0,90185.0,0.0301664]
[1766985625264,0.0110988,90194.0,90185.0,0.0301664]
[1766985625468,0.0110974,90206.0,90186.0,0.0110998]
[1766985625675,0.0110974,90206.0,90190.0,0.21946459]
[1766985625865,0.0110974,90206.0,90190.0,0.03]
[1766985626261,0.0110977,90204.0,90190.0,0.03]
[1766985626463,0.00016631,90206.0,90190.0,0.03]
[1766985626662,0.02565266,90205.0,90190.0,0.03]
[1766985626871,0.00016631,90206.0,90190.0,0.03]
[1766985626872,0.02565266,90204.0,90190.0,0.03]
[1766985627072,0.0110986,90196.0,90190.0,0.03]
[1766985627665,0.0110987,90195.0,90186.0,0.05568]
[1766985627864,0.0110987,90195.0,90186.0,0.06568]
[1766985628576,0.0110987,90195.0,90186.0,0.01]
[1766985629176,0.02575358,90194.0,90186.0,0.01]
[1766985629474,0.0110987,90195.0,90186.0,0.01]
[1766985629475,0.02575358,90193.0,90186.0,0.01]
[1766985629674,0.02575358,90192.0,90186.0,0.01]
[1766985629864,0.02575358,90191.0,90186.0,0.01]
[1766985630064,0.02575449,90190.0,90186.0,0.01]
[1766985630275,0.0110987,90195.0,90186.0,0.01]
[1766985630577,0.02575291,90194.0,90186.0,0.01]
[1766985630775,0.02575291,90193.0,90186.0,0.01]
[1766985631074,0.02575291,90192.0,90186.0,0.01]
[1766985631277,0.02575291,90191.0,90186.0,0.01]
[1766985631572,0.00016631,90206.0,90186.0,0.01]
[1766985631876,0.02575103,90205.0,90186.0,0.01]
[1766985632076,0.02575103,90204.0,90186.0,0.01]
[1766985632376,0.02575103,90203.0,90186.0,0.01]
[1766985632578,0.0110982,90200.0,90186.0,0.01]
[1766985632874,0.02575103,90199.0,90186.0,0.01]
[1766985633077,0.02575103,90198.0,90186.0,0.01]
[1766985633275,0.02575103,90197.0,90186.0,0.01]
[1766985633476,0.02575103,90196.0,90186.0,0.01]
[1766985633671,0.02575103,90195.0,90186.0,0.01]
[1766985633871,0.02575103,90194.0,90186.0,0.01]
[1766985634075,0.02575103,90193.0,90186.0,0.01]
[1766985634274,0.02575103,90192.0,90186.0,0.01]
[1766985634580,0.00654274,90191.0,90186.0,0.01]
[1766985634776,0.0110982,90200.0,90186.0,0.01]
[1766985636078,0.0110984,90198.0,90186.0,0.01]
[1766985636878,0.00016631,90206.0,90186.0,0.01]
[1766985637081,0.0110989,90194.0,90186.0,0.01]
[1766985638075,0.0110983,90198.0,90186.0,0.01]
[1766985638581,0.0110983,90198.0,90187.0,0.05568]
[1766985638771,0.0110983,90198.0,90187.0,0.08568]
[1766985646390,0.02547807,90197.0,90187.0,0.08568]
[1766985646587,0.02547807,90196.0,90187.0,0.08568]
[1766985646787,0.02547807,90195.0,90187.0,0.08568]
[1766985646990,0.02547807,90194.0,90187.0,0.08568]
[1766985647286,0.0110987,90196.0,90187.0,0.08568]
[1766985647487,0.02548042,90195.0,90187.0,0.08568]
[1766985647675,0.02548042,90194.0,90187.0,0.08568]
[1766985647881,0.0110987,90196.0,90187.0,0.08568]
[1766985648086,0.02548043,90195.0,90187.0,0.08568]
[1766985648283,0.02199043,90194.0,90187.0,0.08568]
[1766985648482,0.0110987,90196.0,90187.0,0.08568]
[1766985648682,0.00016631,90206.0,90187.0,0.08568]
[1766985649390,0.0110985,90197.0,90187.0,0.08568]
[1766985649693,0.0110975,90205.0,90187.0,0.08568]
[1766985650078,0.011099,90193.0,90187.0,0.01]
[1766985650282,0.0110992,90191.0,90187.0,0.08568]
[1766985650789,0.0110977,90204.0,90187.0,0.08568]
[1766985652892,0.011099,90193.0,90187.0,0.08568]
[1766985653189,0.011099,90193.0,90187.0,0.03]
[1766985654886,0.0110977,90204.0,90187.0,0.03]
[1766985655587,0.011099,90193.0,90187.0,0.03]
[1766985656794,0.0110993,90190.0,90181.0,0.00016631]
[1766985656993,0.0110976,90204.0,90181.0,0.03016631]
[1766985658195,0.0110989,90194.0,90181.0,0.03016631]
[1766985658695,0.0110989,90194.0,90182.0,0.05568]
[1766985658995,0.0110989,90194.0,90183.0,0.05568]
[1766985659297,0.0110989,90194.0,90183.0,0.08568]
[1766985660395,8e-08,90193.0,90183.0,0.08568]
[1766985660595,0.0110989,90194.0,90183.0,0.08568]
[1766985661397,0.0110985,90197.0,90183.0,0.08568]
[1766985663592,0.00016631,90206.0,90183.0,0.08568]
[1766985663994,0.0110982,90200.0,90183.0,0.0967801]
[1766985664298,0.0110982,90200.0,90183.0,0.08568]
[1766985666895,0.0110984,90198.0,90183.0,0.08568]
[1766985669300,0.011098,90201.0,90183.0,0.0967801]
[1766985669599,0.011098,90201.0,90183.0,0.0411001]
[1766985669794,0.011098,90201.0,90184.0,0.05568]
[1766985669996,0.011098,90201.0,90184.0,0.03]
[1766985670504,0.011098,90201.0,90185.0,0.05568]
[1766985670800,0.011098,90201.0,90185.0,0.08568]
[1766985671001,0.0110983,90199.0,90185.0,0.08568]
[1766985672101,0.00016631,90206.0,90185.0,0.08568]
[1766985672503,0.02526133,90205.0,90185.0,0.08568]
[1766985672803,0.0110982,90200.0,90185.0,0.08568]
[1766985673005,0.02526133,90199.0,90185.0,0.08568]
[1766985673301,0.02526133,90198.0,90185.0,0.08568]
[1766985673501,0.02526133,90197.0,90185.0,0.08568]
[1766985673693,0.02526133,90196.0,90185.0,0.08568]
[1766985673894,0.02526133,90195.0,90185.0,0.08568]
[1766985674093,0.02526133,90194.0,90185.0,0.08568]
[1766985674396,0.02526133,90193.0,90185.0,0.08568]
[1766985674596,0.02526133,90192.0,90185.0,0.08568]
[1766985674901,0.0110984,90198.0,90185.0,0.08568]
[1766985675101,0.02524498,90197.0,90185.0,0.08568]
[1766985675302,0.02524498,90196.0,90185.0,0.08568]
[1766985675496,0.02524498,90195.0,90185.0,0.08568]
[1766985675702,0.02524498,90194.0,90185.0,0.08568]
[1766985675898,0.02524498,90193.0,90185.0,0.08568]
[1766985676105,0.02524498,90192.0,90185.0,0.08568]
[1766985676405,0.0110984,90198.0,90185.0,0.08568]
[1766985676704,0.02524149,90197.0,90185.0,0.03]
[1766985676904,0.02524149,90196.0,90185.0,0.03]
[1766985677206,0.02524149,90195.0,90186.0,0.05408]
[1766985677504,0.02524149,90194.0,90186.0,0.08408]
[1766985677699,0.02524149,90193.0,90186.0,0.08408]
[1766985677900,0.02524149,90192.0,90186.0,0.08408]
[1766985678105,0.0110984,90198.0,90186.0,0.08408]
[1766985678306,0.02524181,90197.0,90186.0,0.08408]